bitfinex-derivatives/quotes_BTCF0:USTF0_20250119
["timestamp","ask_amount","ask_price","bid_price","bid_amount"]
[1737296856226,0.3608,105580.0,105550.0,0.3608]
[1737296856430,0.3608,105590.0,105580.0,0.04743]
[1737296856617,0.53047993,105600.0,105580.0,0.14451058]
[1737296856818,0.53047993,105610.0,105590.0,0.14450658]
[1737296857026,0.16967993,105610.0,105600.0,0.09708058]
[1737296857224,0.16967993,105610.0,105600.0,0.24158216]
[1737296857424,0.16967993,105610.0,105600.0,0.60238216]
[1737296857624,0.16967993,105610.0,105600.0,0.50530158]
[1737296857924,0.53047993,105610.0,105600.0,0.14450158]
[1737296858234,0.3608,105620.0,105600.0,0.14450158]
[1737296858428,0.3608,105620.0,105600.0,0.047421]
[1737296858733,0.3608,105620.0,105600.0,0.14450158]
[1737296859337,0.3608,105610.0,105600.0,0.01017746]
[1737296859538,0.3608,105610.0,105590.0,0.14450558]
[1737296859736,0.3608,105610.0,105590.0,0.047425]
[1737296860034,0.3608,105610.0,105590.0,0.14450558]
[1737296861126,0.3608,105610.0,105600.0,0.09708058]
[1737296861929,0.3608,105610.0,105600.0,0.14450158]
[1737296862123,0.3608,105620.0,105600.0,0.15207158]
[1737296862841,0.3608,105610.0,105600.0,0.054991]
[1737296863030,0.45788058,105620.0,105600.0,0.054991]
[1737296863031,0.3608,105620.0,105600.0,0.15207158]
[1737296863743,0.3608,105610.0,105600.0,0.15207158]
[1737296864540,0.3608,105610.0,105600.0,0.15964158]
[1737296864943,0.3608,105620.0,105600.0,0.15964158]
[1737296865434,0.3608,105620.0,105600.0,0.16970936]
[1737296866038,0.3608,105610.0,105600.0,0.16970936]
[1737296866335,0.3608,105610.0,105600.0,0.07262878]
[1737296867032,0.3608,105620.0,105600.0,0.16970936]
[1737296867231,0.3608,105610.0,105600.0,0.16970936]
[1737296867430,0.3608,105620.0,105600.0,0.16970936]
[1737296868433,0.3608,105610.0,105600.0,0.16970936]
[1737296868634,0.3608,105620.0,105600.0,0.16970936]
[1737296869151,0.3608,105620.0,105600.0,0.07262878]
[1737296869332,0.3608,105610.0,105600.0,0.16970936]
[1737296869732,0.3608,105620.0,105600.0,0.07262878]
[1737296869936,0.3608,105610.0,105600.0,0.16970936]
[1737296870136,0.3608,105610.0,105600.0,0.02520778]
[1737296870436,0.3608,105610.0,105600.0,0.26678994]
[1737296870637,0.3608,105620.0,105600.0,0.58016894]
[1737296870842,0.3608,105620.0,105610.0,0.46579758]
[1737296871743,0.3608,105620.0,105610.0,0.36089758]
[1737296873245,0.3608,105640.0,105610.0,0.36089758]
[1737296873448,0.3608,105640.0,105610.0,0.263817]
[1737296874150,0.3608,105640.0,105610.0,0.24007]
[1737296874345,0.3608,105640.0,105610.0,0.60087]
[1737296874650,0.3608,105630.0,105610.0,0.24007]
[1737296876045,0.3608,105620.0,105610.0,0.24007]
[1737296876249,0.3608,105620.0,105610.0,0.287487]
[1737296877544,0.3608,105620.0,105610.0,0.24007]
[1737296877740,2.8578262,105620.0,105610.0,0.02367]
[1737296877946,2.9052382,105620.0,105610.0,0.02367]
[1737296879241,2.8578262,105620.0,105610.0,0.02367]
[1737296881146,2.9052392,105620.0,105600.0,0.02520778]
[1737296881445,0.4578262,105610.0,105600.0,0.02520778]
[1737296881843,2.8578262,105610.0,105600.0,0.02520778]
[1737296882042,2.7608,105610.0,105600.0,0.02520778]
[1737296882250,2.8578262,105610.0,105600.0,0.02520778]
[1737296882742,2.8578262,105610.0,105570.0,0.27311387]
[1737296882743,0.8012524,105610.0,105570.0,0.27311387]
[1737296882948,0.4578262,105580.0,105570.0,0.22567987]
[1737296883450,0.4578262,105580.0,105570.0,0.28338226]
[1737296883451,0.3608,105580.0,105570.0,0.28338226]
[1737296883652,0.3608,105580.0,105570.0,0.38040846]
[1737296883954,0.3608,105580.0,105570.0,0.38797846]
[1737296884249,0.3608,105580.0,105570.0,0.06669298]
[1737296884756,0.3515685,105580.0,105570.0,0.06669298]
[1737296885054,0.4578262,105590.0,105570.0,0.06669298]
[1737296885255,0.3608,105590.0,105570.0,0.16371918]
[1737296885445,0.3608,105580.0,105570.0,0.16371918]
[1737296885946,0.3608,105590.0,105580.0,0.04743]
[1737296886659,0.34234745,105590.0,105580.0,0.1444562]
[1737296886954,0.3124892,105590.0,105580.0,0.1444562]
[1737296887353,0.3608,105600.0,105590.0,0.047426]
[1737296887557,0.3608,105600.0,105590.0,0.4092522]
[1737296889055,0.3608,105610.0,105590.0,0.4092522]
[1737296889253,0.3608,105600.0,105590.0,0.4092522]
[1737296889458,0.35069913,105600.0,105590.0,0.63351148]
[1737296889757,0.3608,105610.0,105600.0,0.047421]
[1737296889960,0.3608,105610.0,105600.0,0.1444472]
[1737296890357,0.3608,105610.0,105600.0,0.047421]
[1737296891656,0.4578262,105610.0,105600.0,0.27168028]
[1737296891958,0.3608,105610.0,105600.0,0.27925028]
[1737296892550,0.4578262,105610.0,105600.0,0.27925028]
[1737296892749,0.4578262,105610.0,105600.0,0.054991]
[1737296892954,0.3608,105610.0,105600.0,0.054991]
[1737296893348,0.3608,105610.0,105600.0,0.1520172]
[1737296893557,0.3608,105610.0,105600.0,0.054991]
[1737296894762,0.35477236,105610.0,105600.0,0.054991]
[1737296895254,0.45179856,105610.0,105600.0,0.054991]
[1737296895455,2.82659078,105610.0,105600.0,0.054991]
[1737296895865,2.72956458,105610.0,105600.0,0.054991]
[1737296896259,2.82659078,105610.0,105600.0,0.054991]
[1737296896461,2.82659078,105610.0,105600.0,0.00757]
[1737296896861,2.87400778,105610.0,105600.0,0.00757]
[1737296897064,3.07090778,105610.0,105600.0,0.00757]
[1737296897261,3.07090778,105610.0,105600.0,0.01514]
[1737296898463,3.21205829,105610.0,105600.0,0.01514]
[1737296898766,3.21205829,105610.0,105590.0,0.01003522]
[1737296898953,0.3608,105600.0,105580.0,0.310327]
[1737296899157,0.3608,105600.0,105590.0,0.047426]
[1737296899357,0.3608,105600.0,105590.0,0.1444522]
[1737296900066,0.3608,105600.0,105590.0,0.1520222]
[1737296900859,0.3608,105600.0,105590.0,0.2812222]
[1737296901065,0.3608,105600.0,105590.0,0.50548148]
[1737296901367,0.3608,105610.0,105600.0,0.047421]
[1737296901662,0.3608,105610.0,105600.0,0.071091]
[1737296902052,0.3608,105610.0,105600.0,0.1681172]
[1737296902258,0.3608,105620.0,105610.0,0.047417]
[1737296902451,0.3608,105620.0,105610.0,0.297317]
[1737296902668,0.14115051,105630.0,105610.0,0.7551432]
[1737296902857,0.14115051,105630.0,105610.0,0.658117]
[1737296903866,0.3608,105640.0,105620.0,0.22425928]
[1737296904062,0.3608,105640.0,105630.0,0.047408]
[1737296905064,0.3608,105640.0,105630.0,0.27166728]
[1737296906558,0.3608,105640.0,105630.0,0.61158733]
[1737296907566,0.3608,105640.0,105630.0,0.047408]
[1737296907768,0.3608,105660.0,105630.0,0.408208]
[1737296908062,0.3608,105650.0,105630.0,0.047408]
[1737296908757,0.3608,105680.0,105640.0,0.82985322]
[1737296909065,0.3608,105680.0,105650.0,0.36087757]
[1737296909066,0.3608,105670.0,105650.0,0.36087757]
[1737296909268,0.47384723,105680.0,105650.0,0.36087757]
[1737296909464,0.36084023,105690.0,105650.0,0.36087757]
[1737296909465,0.36084023,105690.0,105670.0,0.04739]
[1737296909764,0.36084023,105690.0,105670.0,0.3608]
[1737296909973,4.023e-05,105690.0,105670.0,0.90780402]
[1737296910170,4.023e-05,105690.0,105670.0,0.9096967]
[1737296910463,4.023e-05,105690.0,105670.0,0.91537402]
[1737296910666,4.023e-05,105690.0,105670.0,0.9172667]
[1737296910881,0.36084023,105690.0,105670.0,0.5564667]
[1737296911564,0.36084023,105690.0,105670.0,0.90367359]
[1737296911565,0.3608,105680.0,105670.0,0.90367359]
[1737296911770,0.3608,105680.0,105670.0,1.12378957]
[1737296911961,0.3608,105680.0,105670.0,1.08904196]
[1737296912469,1.21268,105680.0,105670.0,0.62192196]
[1737296912669,0.7216,105680.0,105670.0,0.26112196]
[1737296913266,0.7216,105680.0,105670.0,0.01264239]
[1737296913571,0.7216,105680.0,105670.0,0.04739]
[1737296913761,0.7216,105680.0,105670.0,0.15661025]
[1737296914266,0.3608,105680.0,105670.0,0.15661025]
[1737296914571,0.36084023,105690.0,105680.0,0.04663264]
[1737296914866,0.70605732,105690.0,105670.0,0.061588]
[1737296915067,0.3608,105680.0,105670.0,0.047388]
[1737296915261,0.35791448,105680.0,105670.0,0.047388]
[1737296915672,0.1,105700.0,105690.0,0.047381]
[1737296915972,0.3608,105710.0,105690.0,0.514261]
[1737296916174,0.3608,105710.0,105690.0,0.62248023]
[1737296916363,0.3608,105700.0,105690.0,0.62248023]
[1737296916563,0.3608,105710.0,105690.0,0.62248023]
[1737296916872,0.3608,105710.0,105690.0,0.514261]
[1737296917071,0.3608,105700.0,105690.0,0.514261]
[1737296917672,0.3608,105710.0,105690.0,0.65679306]
[1737296917868,0.3608,105700.0,105690.0,0.65679306]
[1737296918077,0.3608,105710.0,105690.0,0.5723012]
[1737296918876,0.3608,105720.0,105690.0,1.07569386]
[1737296920279,0.3608,105720.0,105690.0,1.08812168]
[1737296921067,0.3608,105710.0,105690.0,1.08812168]
[1737296921476,0.3608,105720.0,105690.0,1.08812168]
[1737296921677,0.3608,105730.0,105690.0,1.08812168]
[1737296921865,0.3608,105700.0,105690.0,0.72732168]
[1737296922070,0.3608,105700.0,105690.0,0.52668882]
[1737296922370,0.3608,105700.0,105690.0,0.47930782]
[1737296922770,0.3608,105700.0,105690.0,0.52668882]
[1737296922978,0.3608,105710.0,105690.0,0.47930782]
[1737296923174,0.3608,105700.0,105690.0,0.47930782]
[1737296923568,0.3608,105700.0,105690.0,0.63405742]
[1737296925483,0.3608,105730.0,105690.0,0.99485742]
[1737296925674,0.3608,105710.0,105690.0,1.13648167]
[1737296926089,0.3608,105720.0,105690.0,1.13648167]
[1737296927077,0.3608,105710.0,105690.0,0.77568167]
[1737296927279,0.3608,105730.0,105700.0,0.408177]
[1737296927476,0.3608,105720.0,105710.0,0.047372]
[1737296927675,0.3608,105730.0,105710.0,0.047372]
[1737296927883,0.3608,105730.0,105710.0,0.29405509]
[1737296928579,0.3608,105720.0,105710.0,0.15159434]
[1737296929483,0.3608,105730.0,105710.0,0.15159434]
[1737296929984,0.3608,105720.0,105710.0,0.15159434]
[1737296930171,0.3608,105730.0,105710.0,0.24696434]
[1737296930376,0.3608,105730.0,105710.0,0.75040641]
[1737296930582,0.3608,105730.0,105710.0,0.39716641]
[1737296930984,0.00041867,105720.0,105710.0,0.39716641]
[1737296931385,0.00052476,105720.0,105710.0,0.25463221]
[1737296932488,0.00052476,105720.0,105710.0,0.61543221]
[1737296932687,0.36132476,105720.0,105710.0,0.1715851]
[1737296932878,0.69012476,105720.0,105710.0,0.53400276]
[1737296933278,0.69012476,105720.0,105700.0,0.08367225]
[1737296933480,0.3608,105710.0,105700.0,0.08367225]
[1737296933678,0.3608,105710.0,105700.0,0.09599514]
[1737296934089,1.21268,105710.0,105690.0,0.47416]
[1737296934286,0.3608,105700.0,105690.0,0.47416]
[1737296934589,0.3608,105700.0,105690.0,0.00756]
[1737296934785,2.73568473,105700.0,105670.0,0.00012291]
[1737296934986,1.21268,105680.0,105650.0,0.27821413]
[1737296935182,1.57348,105660.0,105640.0,0.33371946]
[1737296935378,0.3608,105650.0,105640.0,0.33371946]
[1737296935888,0.36088814,105650.0,105640.0,0.34601858]
[1737296936085,0.36088814,105650.0,105640.0,0.01986912]
[1737296936880,0.36088814,105650.0,105640.0,0.06727212]
[1737296937675,0.36088814,105650.0,105640.0,0.01986912]
[1737296938777,3.58756036,105650.0,105620.0,8.051e-05]
[1737296938981,1.57348,105630.0,105620.0,8.051e-05]
[1737296939688,3.94836767,105630.0,105610.0,0.00141968]
[1737296939885,1.37668,105620.0,105610.0,0.00141968]
[1737296940195,1.37668,105620.0,105610.0,0.00898968]
[1737296940394,1.37668,105620.0,105600.0,0.1]
[1737296940691,0.3608,105610.0,105600.0,0.15993251]
[1737296941590,0.3608,105610.0,105600.0,0.16750251]
[1737296942494,1.21268,105610.0,105600.0,0.12008151]
[1737296942695,1.21268,105610.0,105600.0,0.12765151]
[1737296945397,0.3608,105610.0,105600.0,0.17507251]
[1737296945896,0.7216,105610.0,105600.0,0.17507251]
[1737296946395,1.57348,105610.0,105600.0,0.12765151]
[1737296946594,3.94837026,105610.0,105580.0,0.04751655]
[1737296946801,1.57348,105590.0,105580.0,0.06012588]
[1737296947995,1.57348,105590.0,105580.0,0.06769588]
[1737296948199,3.94827222,105590.0,105570.0,0.047435]
[1737296948403,1.21268,105580.0,105570.0,0.047435]
[1737296949499,0.3608,105580.0,105570.0,0.055005]
[1737296949890,1.21268,105580.0,105570.0,0.00757]
[1737296950087,1.45088,105580.0,105570.0,0.00757]
[1737296950791,1.09008,105580.0,105570.0,0.00757]
[1737296951096,1.81180198,105580.0,105570.0,0.00757]
[1737296951302,1.81180198,105580.0,105570.0,0.055005]
[1737296951600,1.81180198,105580.0,105570.0,0.06734422]
[1737296956798,1.81180198,105580.0,105570.0,0.01990922]
[1737296957003,1.52707365,105580.0,105570.0,0.01990922]
[1737296957204,1.51283913,105580.0,105570.0,0.01990922]
[1737296959308,1.51283913,105580.0,105570.0,0.02747922]
[1737296960411,3.88763135,105580.0,105550.0,0.46696]
[1737296960600,1.57348,105560.0,105550.0,0.46696]
[1737296961913,1.56851811,105560.0,105550.0,0.521974]
[1737296962109,1.56353281,105560.0,105550.0,0.521974]
[1737296962310,1.56353281,105560.0,105550.0,0.53450596]
[1737296962513,1.56353281,105560.0,105550.0,0.48706196]
[1737296962918,1.56353281,105560.0,105550.0,0.49463196]
[1737296963106,3.93832503,105560.0,105550.0,0.49463196]
[1737296963424,3.93832503,105560.0,105550.0,0.02767196]
[1737296964608,0.85188,105550.0,105510.0,0.1664291]
[1737296964808,0.7216,105520.0,105510.0,0.2138901]
[1737296965010,0.3608,105520.0,105510.0,0.33809975]
[1737296965209,0.3608,105530.0,105520.0,0.047457]
[1737296965919,1.21268,105530.0,105520.0,0.055037]
[1737296967317,1.21278993,105530.0,105520.0,0.055037]
[1737296968109,1.21278993,105530.0,105520.0,0.062617]
[1737296968318,3.44081512,105530.0,105520.0,0.01516]
[1737296968919,1.21278993,105530.0,105520.0,0.062617]
[1737296969614,3.44081512,105530.0,105520.0,0.062617]
[1737296969917,3.44081512,105530.0,105520.0,0.01516]
[1737296970220,3.69691512,105530.0,105510.0,0.17918246]
[1737296970419,1.21268,105520.0,105510.0,0.17918246]
[1737296970818,3.44070519,105520.0,105510.0,0.17918246]
[1737296971014,3.44070519,105520.0,105510.0,0.01275336]
[1737296971218,3.44070519,105520.0,105500.0,0.31400198]
[1737296971520,1.21268,105510.0,105500.0,0.25411698]
[1737296971819,1.46848,105510.0,105500.0,0.31425515]
[1737296972016,3.69650519,105510.0,105500.0,0.31425515]
[1737296972221,1.21268,105510.0,105500.0,0.31425515]
[1737296972420,1.21268,105510.0,105500.0,0.14782605]
[1737296972621,1.20768782,105510.0,105500.0,0.14782605]
[1737296975817,3.07990519,105510.0,105500.0,0.10036005]
[1737296976023,3.80150519,105510.0,105500.0,0.10036005]
[1737296976728,3.80150519,105510.0,105500.0,0.12405005]
[1737296977625,3.80150519,105510.0,105500.0,0.29047915]
[1737296977626,3.80158982,105510.0,105500.0,0.29047915]
[1737296978017,3.80158982,105510.0,105490.0,0.36441442]
[1737296978217,1.21268,105500.0,105490.0,0.29313178]
[1737296978424,1.48868,105500.0,105490.0,0.30071178]
[1737296978621,3.71670519,105500.0,105490.0,0.02013392]
[1737296979324,0.85188,105480.0,105460.0,0.00142138]
[1737296979527,1.57348,105470.0,105460.0,0.06144926]
[1737296979835,0.72170516,105470.0,105460.0,0.04890538]
[1737296980123,0.36090516,105470.0,105460.0,0.59280538]
[1737296980629,0.36090516,105470.0,105460.0,0.60796538]
[1737296981113,0.35433208,105470.0,105460.0,0.60796538]
[1737296981319,0.29642524,105470.0,105460.0,0.60796538]
[1737296981518,0.3608,105480.0,105460.0,0.60796538]
[1737296981718,0.3608,105480.0,105470.0,0.04748]
[1737296982027,0.36132001,105490.0,105480.0,0.047475]
[1737296982224,1.21268,105490.0,105480.0,0.047475]
[1737296982615,1.21277816,105490.0,105480.0,0.047475]
[1737296983020,1.16999096,105490.0,105480.0,0.047475]
[1737296983313,0.31811096,105490.0,105480.0,0.047475]
[1737296983525,1.16999096,105490.0,105480.0,0.047475]
[1737296983720,1.15411885,105490.0,105480.0,0.047475]
[1737296983922,1.14466867,105490.0,105480.0,0.047475]
[1737296984429,1.1337268,105490.0,105480.0,0.047475]
[1737296985954,0.35797487,105500.0,105470.0,0.6257]
[1737296986131,1.20395449,105500.0,105490.0,0.047471]
[1737296987223,1.20404808,105500.0,105490.0,0.047471]
[1737296988335,1.20404808,105500.0,105480.0,0.315874]
[1737296988528,1.21268,105490.0,105480.0,0.315874]
[1737296989041,1.21268,105490.0,105470.0,0.01255508]
[1737296989342,1.21268,105490.0,105460.0,0.97206238]
[1737296989343,0.3608,105480.0,105460.0,0.97206238]
[1737296989522,0.3608,105480.0,105470.0,0.04748]
[1737296989831,0.35799616,105480.0,105470.0,0.04748]
[1737296990223,1.20987616,105480.0,105470.0,0.04748]
[1737296992419,0.35799616,105480.0,105470.0,0.04748]
[1737296993027,0.3608,105490.0,105460.0,0.93698453]
[1737296993227,1.21268,105490.0,105480.0,0.047475]
[1737296994129,1.21268,105490.0,105480.0,0.33421841]
[1737296995032,1.20609873,105490.0,105480.0,0.33421841]
[1737296995337,1.18926426,105490.0,105480.0,0.33421841]
[1737296995527,1.18558149,105490.0,105480.0,0.33421841]
[1737296996629,1.18558149,105490.0,105480.0,0.34651169]
[1737296996936,1.18558149,105490.0,105480.0,0.68987161]
[1737296997432,1.18558149,105490.0,105480.0,0.71357161]
[1737297000631,0.36089359,105500.0,105480.0,0.71357161]
[1737297000835,1.21277359,105500.0,105490.0,0.047471]
[1737297001730,1.21277359,105500.0,105490.0,0.67346126]
[1737297003337,2.82650146,105500.0,105490.0,0.67796899]
[1737297003634,1.15932598,105500.0,105490.0,0.67796899]
[1737297003826,0.8464813,105500.0,105490.0,0.67796899]
[1737297004032,0.80187556,105500.0,105490.0,1.59936899]
[1737297004637,0.80195995,105500.0,105490.0,1.23856899]
[1737297004832,0.80195995,105500.0,105490.0,1.6359178]
[1737297005247,0.78895996,105500.0,105490.0,1.6359178]
[1737297006236,0.78895996,105500.0,105490.0,1.3518178]
[1737297006540,1.14975996,105500.0,105490.0,1.3518178]
[1737297007238,1.14975996,105500.0,105490.0,0.95446899]
[1737297007645,1.14975996,105500.0,105490.0,0.96204899]
[1737297007945,0.78895996,105500.0,105490.0,0.96204899]
[1737297009046,0.78895996,105500.0,105490.0,0.68554899]
[1737297009345,2.40268783,105500.0,105490.0,0.63807799]
[1737297010237,0.70253696,105500.0,105490.0,0.68554899]
[1737297011045,1.00638785,105500.0,105490.0,0.68554899]
[1737297011235,1.00646154,105500.0,105490.0,1.47206524]
[1737297011546,0.36087369,105500.0,105490.0,1.47206524]
[1737297011741,0.64566154,105500.0,105490.0,1.47206524]
[1737297012044,1.00646154,105500.0,105490.0,1.42459424]
[1737297012837,1.28586154,105500.0,105490.0,1.42459424]
[1737297013346,1.28586154,105500.0,105490.0,1.47206524]
[1737297016735,1.28586154,105500.0,105490.0,1.47964524]
[1737297017738,1.28586154,105500.0,105490.0,0.69312899]
[1737297017739,1.00646154,105500.0,105490.0,0.69312899]
[1737297019951,0.61046238,105500.0,105490.0,0.69312899]
[1737297020536,0.3608,105510.0,105500.0,0.047466]
[1737297020741,0.91927737,105510.0,105500.0,0.047466]
[1737297020945,0.57461467,105510.0,105500.0,0.696766]
[1737297021139,0.57461467,105510.0,105500.0,0.963266]
[1737297021340,0.52066467,105510.0,105500.0,0.963266]
[1737297021540,0.52066467,105510.0,105500.0,1.98784322]
[1737297021741,0.52066467,105510.0,105500.0,1.62704322]
[1737297023044,0.49983545,105510.0,105500.0,1.62704322]
[1737297023246,0.86063545,105510.0,105500.0,1.02457722]
[1737297023455,0.49983545,105510.0,105500.0,1.02457722]
[1737297023950,0.49983545,105510.0,105500.0,1.04038394]
[1737297024549,0.49983545,105510.0,105500.0,1.43140162]
[1737297024749,0.86063545,105510.0,105500.0,1.43140162]
[1737297025354,0.49983545,105510.0,105500.0,1.43140162]
[1737297025854,0.047485,105460.0,105410.0,0.77567515]
[1737297026045,0.3608,105420.0,105410.0,0.72816915]
[1737297026239,0.408302,105420.0,105410.0,0.72816915]
[1737297026446,0.408302,105420.0,105410.0,0.74349436]
[1737297026645,0.3608,105420.0,105410.0,0.74349436]
[1737297026849,0.5015443,105420.0,105410.0,0.01532521]
[1737297027147,0.5015443,105420.0,105410.0,0.01516]
[1737297027755,0.5015443,105420.0,105400.0,0.1154272]
[1737297027949,0.3608,105410.0,105400.0,0.1154272]
[1737297028449,0.3608,105410.0,105400.0,0.1]
[1737297028639,0.82153381,105410.0,105370.0,0.00142369]
[1737297028846,0.7216,105380.0,105370.0,0.00142369]
[1737297029152,0.7216,105380.0,105370.0,0.02786323]
[1737297029350,0.7216,105380.0,105370.0,0.01247369]
[1737297030349,0.7216,105380.0,105370.0,0.02837789]
[1737297031451,0.83482681,105380.0,105370.0,0.02837789]
[1737297031651,0.8349324,105380.0,105370.0,0.0281829]
[1737297031955,0.72170559,105380.0,105370.0,0.0281829]
[1737297032249,0.72170559,105380.0,105360.0,9.245e-05]
[1737297032456,0.3608,105370.0,105360.0,9.245e-05]
[1737297033253,0.3608,105370.0,105360.0,0.69683127]
[1737297033447,0.3608,105370.0,105360.0,0.69890127]
[1737297034447,0.3608,105370.0,105360.0,0.49920542]
[1737297035851,0.3608,105370.0,105360.0,0.01798832]
[1737297036448,0.3608,105370.0,105360.0,0.04170832]
[1737297036749,0.36091504,105370.0,105360.0,0.02579]
[1737297037749,0.36091504,105370.0,105360.0,0.02575]
[1737297038051,0.7216,105370.0,105340.0,0.0175083]
[1737297038257,0.7216,105350.0,105340.0,0.0175083]
[1737297038651,0.72170885,105350.0,105340.0,0.0175083]
[1737297039459,0.72170885,105350.0,105340.0,0.01608471]
[1737297039750,0.72170885,105350.0,105330.0,7e-05]
[1737297039964,0.3608,105340.0,105330.0,7e-05]
[1737297040150,0.3608,105340.0,105330.0,0.01587507]
[1737297040352,0.3608,105340.0,105330.0,7e-05]
[1737297040657,0.3608,105340.0,105330.0,0.4813011]
[1737297040859,0.3608,105340.0,105330.0,1.0514011]
[1737297041554,0.00010885,105350.0,105330.0,1.4122011]
[1737297041749,0.47545108,105370.0,105340.0,0.689838]
[1737297041950,0.36222427,105370.0,105340.0,0.689838]
[1737297042450,0.3608,105360.0,105340.0,0.689838]
[1737297042653,7.812e-05,105350.0,105340.0,0.329038]
[1737297042861,7.812e-05,105350.0,105340.0,0.4812261]
[1737297043459,7.812e-05,105350.0,105340.0,0.8420261]
[1737297044161,7.812e-05,105350.0,105340.0,0.4812261]
[1737297044957,0.36087812,105350.0,105330.0,0.97264993]
[1737297045152,0.3608,105340.0,105330.0,0.31674993]
[1737297045460,0.36087812,105350.0,105330.0,0.31674993]
[1737297045760,0.3608,105340.0,105330.0,0.31674993]
[1737297046254,0.3608,105340.0,105330.0,0.75043803]
[1737297046460,0.36087812,105350.0,105330.0,0.75043803]
[1737297046661,0.36087812,105350.0,105330.0,0.31674993]
[1737297046861,7.812e-05,105350.0,105330.0,0.31674993]
[1737297047064,0.36087812,105350.0,105330.0,0.31674993]
[1737297047248,0.3608,105340.0,105330.0,0.31674993]
[1737297047561,0.36087812,105350.0,105330.0,0.31674993]
[1737297048362,7.812e-05,105350.0,105330.0,0.31674993]
[1737297048963,7.812e-05,105350.0,105330.0,1.15877803]
[1737297050061,7.812e-05,105350.0,105330.0,1.26351912]
[1737297050262,7.812e-05,105350.0,105330.0,1.54911912]
[1737297050459,7.812e-05,105350.0,105330.0,1.18831912]
[1737297050657,7.812e-05,105350.0,105330.0,1.54911912]
[1737297051162,7.812e-05,105350.0,105340.0,0.3608]
[1737297051564,7.812e-05,105350.0,105340.0,0.7944881]
[1737297051763,7.812e-05,105350.0,105340.0,0.4336881]
[1737297052161,0.3608,105380.0,105340.0,0.90202072]
[1737297052355,0.47402681,105380.0,105350.0,0.972333]
[1737297052557,0.3608,105370.0,105350.0,0.611533]
[1737297053058,0.47402681,105380.0,105350.0,1.0452211]
[1737297053356,7.134e-05,105370.0,105360.0,0.3608]
[1737297053867,7.134e-05,105370.0,105360.0,0.7944881]
[1737297054162,7.134e-05,105370.0,105360.0,0.4336881]
[1737297054366,0.36087134,105370.0,105360.0,0.4336881]
[1737297054761,7.134e-05,105370.0,105360.0,0.4336881]
[1737297055160,0.36087134,105370.0,105360.0,0.4336881]
[1737297055364,0.36087134,105370.0,105360.0,0.4574081]
[1737297055565,0.36087134,105370.0,105360.0,0.02372]
[1737297056969,0.53006719,105370.0,105360.0,0.02372]
[1737297057265,0.53006719,105370.0,105360.0,0.03912427]
[1737297058877,0.36087134,105370.0,105360.0,0.03912427]
[1737297059072,0.31859398,105370.0,105360.0,0.52034137]
[1737297059370,0.35452348,105410.0,105370.0,0.047523]
[1737297059574,0.71532348,105410.0,105380.0,0.3608]
[1737297059768,0.19739516,105390.0,105370.0,0.3608]
[1737297060272,9.632e-05,105380.0,105370.0,0.3608]
[1737297060668,9.632e-05,105380.0,105360.0,0.39992427]
[1737297060863,0.67349576,105380.0,105360.0,0.03912427]
[1737297061066,1.04539576,105380.0,105360.0,0.03912427]
[1737297061471,0.7327,105370.0,105360.0,0.03912427]
[1737297061776,0.94942008,105370.0,105360.0,0.03912427]
[1737297062275,0.94942008,105370.0,105360.0,0.02372]
[1737297062571,0.94952825,105370.0,105340.0,0.4682]
[1737297062774,0.94952825,105370.0,105340.0,0.01565376]
[1737297062775,0.3608,105350.0,105340.0,0.01565376]
[1737297062976,1.1062,105360.0,105330.0,0.35947]
[1737297063175,0.7327,105360.0,105330.0,0.35947]
[1737297063680,0.14214505,105350.0,105330.0,0.35947]
[1737297064274,0.14214505,105350.0,105330.0,7e-05]
[1737297064476,0.50305555,105340.0,105330.0,7e-05]
[1737297064977,0.14225555,105340.0,105330.0,7e-05]
[1737297065485,0.17061929,105340.0,105330.0,7e-05]
[1737297066175,0.53141929,105340.0,105330.0,7e-05]
[1737297066768,0.21685666,105340.0,105330.0,7e-05]
[1737297067481,0.57765666,105340.0,105330.0,7e-05]
[1737297067779,0.21685666,105340.0,105330.0,7e-05]
[1737297067978,0.21685666,105340.0,105330.0,0.4337581]
[1737297068283,0.17061929,105340.0,105330.0,0.7918581]
[1737297068678,0.17061929,105340.0,105330.0,0.4310581]
[1737297068982,0.17061929,105340.0,105330.0,0.7918581]
[1737297069174,0.11376323,105340.0,105330.0,0.7918581]
[1737297069373,0.11376323,105340.0,105330.0,0.4310581]
[1737297069585,0.11376323,105340.0,105330.0,0.35817]
[1737297070177,0.11376323,105340.0,105330.0,7e-05]
[1737297070583,0.14217641,105340.0,105330.0,7e-05]
[1737297072081,0.50297641,105340.0,105330.0,7e-05]
[1737297074081,0.53141929,105340.0,105330.0,7e-05]
[1737297075386,0.17061929,105340.0,105330.0,7e-05]
[1737297075585,0.17061929,105340.0,105330.0,0.0729581]
[1737297075973,0.17061929,105340.0,105330.0,7e-05]
[1737297077175,0.11364035,105340.0,105330.0,7e-05]
[1737297077989,0.11364035,105340.0,105330.0,0.4337581]
[1737297078189,0.11364035,105340.0,105330.0,0.0729581]
[1737297078688,0.11364035,105340.0,105330.0,0.4337581]
[1737297078890,0.11364035,105340.0,105330.0,0.0729581]
[1737297079093,0.11364035,105340.0,105330.0,0.4337581]
[1737297079288,0.0001105,105340.0,105330.0,0.4337581]
[1737297079591,0.0001105,105340.0,105330.0,0.0729581]
[1737297080293,0.3609105,105340.0,105330.0,7e-05]
[1737297080479,0.047545,105330.0,105300.0,0.43985769]
[1737297080795,0.3608,105320.0,105300.0,0.43985769]
[1737297080990,0.3608,105310.0,105300.0,0.43985769]
[1737297081492,0.40845702,105310.0,105300.0,0.43985769]
[1737297081683,1.33210502,105310.0,105280.0,0.01608122]
[1737297081990,1.33210502,105310.0,105270.0,0.28029077]
[1737297081991,0.769161,105290.0,105270.0,0.28029077]
[1737297082193,0.36089835,105280.0,105270.0,0.33936419]
[1737297082381,0.40846435,105280.0,105270.0,0.33936419]
[1737297082582,0.70848348,105280.0,105270.0,0.09832419]
[1737297082788,0.047571,105270.0,105250.0,0.67643554]
[1737297083092,0.76925253,105260.0,105250.0,0.67643554]
[1737297083293,0.76925253,105260.0,105240.0,0.45240165]
[1737297083498,0.3608,105250.0,105220.0,0.00142532]
[1737297083689,0.7216,105230.0,105220.0,0.00142532]
[1737297084191,0.72169472,105230.0,105200.0,0.51097553]
[1737297084391,0.3608,105210.0,105200.0,0.51097553]
[1737297084596,0.3608,105210.0,105200.0,0.49623992]
[1737297084782,0.3608,105210.0,105200.0,0.49559992]
[1737297085188,0.3608,105210.0,105200.0,0.1]
[1737297085486,0.3608,105210.0,105180.0,0.3764039]